[Event "LEM Sachsen-Anhalt Masters 2024"]
[Site "Merseburg"]
[Date "2024.02.08"]
[Round "1.1"]
[White "Malek, Daniel"]
[Black "Ahmed, Daniel"]
[Result "1/2-1/2"]
[ECO "B01"]
[WhiteElo "2307"]
[BlackElo "1994"]
[Annotator "RC"]
[PlyCount "198"]
[EventDate "2024.02.01"]
[EventType "swiss"]
[EventCountry "GER"]
[SourceTitle "playchess.com"]
[Source "ChessBase"]
[SourceQuality "1"]
[TimeControl "40/5400+30:1800+30"]

1. e4 {[%emt 0:00:03]} d5 {[%emt 0:00:11]} 2. exd5 {[%emt 0:00:06]} Qxd5 {[%emt 0:00:16]} 3. Nc3 {[%emt 0:00:05]} Qd8 {[%emt 0:00:21]} 4. d4 {[%emt 0:00:09]} Nf6 {[%emt 0:00:13]} 5. Nf3 {[%emt 0:00:06]} g6 {[%emt 0:00:18]} 6. Bc4 {[%emt 0:00:20]} Bg7 {[%emt 0:00:20]} 7. O-O {[%emt 0:00:06]} O-O {[%emt 0:00:18]} 8. Bg5 {[%emt 0:00:10]} a6 {[%emt 0:01:14]} 9. a4 {[%emt 0:08:29]} b6 {[%emt 0:00:25]} 10. Qe2 {[%emt 0:01:26]} Nc6 {[%emt 0:02:51]} 11. Rfd1 {[%emt 0:07:07]} Bg4 {[%emt 0:10:33]} 12. Be3 {[%emt 0:02:25]} Qc8 {[%emt 0:03:14]} 13. h3 {[%emt 0:01:32]} Bh5 {[%emt 0:00:14]} 14. Nd5 {[%emt 0:05:13]} Re8 {[%emt 0:37:38]} 15. Nxf6+ {[%emt 0:05:55]} exf6 {[%emt 0:01:30]} 16. Bd5 {[%emt 0:02:42]} Qd7 {[%emt 0:02:07]} 17. Bxc6 {[%emt 0:06:43]} Qxc6 {[%emt 0:00:36]} 18. g4 {[%emt 0:00:08]} f5 {[%emt 0:02:32]} 19. gxh5 {[%emt 0:04:11]} f4 {[%emt 0:00:27]} 20. Rd3 {[%emt 0:03:04]} fxe3 {[%emt 0:03:41]} 21. Rxe3 {[%emt 0:02:52]} Rxe3 {[%emt 0:09:42]} 22. Qxe3 {[%emt 0:02:53]} Qxc2 {[%emt 0:01:28]} 23. Rc1 {[%emt 0:01:06]} Qxa4 {[%emt 0:00:38]} 24. Rxc7 {[%emt 0:00:43]} Re8 {[%emt 0:02:26]} 25. Qf4 {[%emt 0:02:47]} Qb3 {[%emt 0:02:19]} 26. Kg2 {[%emt 0:06:29]} Qd5 {[%emt 0:02:00]} 27. h6 {[%emt 0:00:04]} Bf8 {[%emt 0:03:08]} 28. Kg1 {[%emt 0:14:15]} Bxh6 {[%emt 0:01:00]} 29. Qf6 {[%emt 0:02:40]} Bf8 {[%emt 0:05:06]} 30. Ne5 {[%emt 0:03:56]} Bg7 {[%emt 0:01:20]} 31. Qxf7+ {[%emt 0:03:51]} Qxf7 {[%emt 0:00:11]} 32. Nxf7 {[%emt 0:00:08]} Re1+ {[%emt 0:00:13]} 33. Kg2 {[%emt 0:00:05]} Bxd4 {[%emt 0:00:17]} 34. b3 {[%emt 0:04:08]} Re2 {[%emt 0:04:33]} 35. Nh6+ {[%emt 0:00:30]} Kf8 {[%emt 0:00:15]} 36. Kf3 {[%emt 0:00:49]} Rxf2+ {[%emt 0:00:22]} 37. Ke4 {[%emt 0:00:05]} Bc5 {[%emt 0:02:01]} 38. Rxh7 {[%emt 0:02:06]} Rb2 {[%emt 0:00:21]} 39. Ra7 {[%emt 0:02:19]} Rxb3 {[%emt 0:01:38]} 40. Ng4 {[%emt 0:01:10]} Rxh3 {[%emt 0:00:48]} 41. Ne5 {[%emt 0:31:38]} a5 {[%emt 0:18:43]} 42. Nxg6+ {[%emt 0:00:00]} Ke8 {[%emt 0:01:19]} 43. Ne5 {[%emt 0:00:00]} a4 {[%emt 0:02:23]} 44. Kd5 {[%emt 0:00:00]} a3 {[%emt 0:00:39]} 45. Nc4 {[%emt 0:00:00]} Kd8 {[%emt 0:01:25]} 46. Kc6 {[%emt 0:00:00]} Rb3 {[%emt 0:00:32]} 47. Ra6 {[%emt 0:00:00]} Ke7 {[%emt 0:00:31]} 48. Nxa3 {[%emt 0:00:00]} Bxa3 {[%emt 0:00:29]} 49. Rxb6 {[%emt 0:00:00]} Rd3 {[%emt 0:00:49]} 50. Rb1 {[%emt 0:00:00]} Rd6+ {[%emt 0:00:33]} 51. Kc7 {[%emt 0:00:00]} Re6 {[%emt 0:00:33]} 52. Rb3 {[%emt 0:00:00]} Bd6+ {[%emt 0:00:25]} 53. Kc6 {[%emt 0:00:00]} Re2 {[%emt 0:00:30]} 54. Rc3 {[%emt 0:00:00]} Ke6 {[%emt 0:00:18]} 55. Rc1 {[%emt 0:00:00]} Be5 {[%emt 0:10:06]} 56. Rc5 {[%emt 0:00:00]} Rd2 {[%emt 0:00:00]} 57. Rc4 {[%emt 0:00:00]} Rd8 {[%emt 0:00:00]} 58. Rc5 {[%emt 0:00:00]} Bd6 {[%emt 0:00:00]} 59. Rc4 {[%emt 0:00:00]} Rc8+ {[%emt 0:00:00]} 60. Kb5 {[%emt 0:00:00]} Rb8+ {[%emt 0:00:00]} 61. Kc6 {[%emt 0:00:00]} Rb1 {[%emt 0:00:00]} 62. Rc2 {[%emt 0:00:00]} Be5 {[%emt 0:00:00]} 63. Rc5 {[%emt 0:00:00]} Bd4 {[%emt 0:00:00]} 64. Rc4 {[%emt 0:00:00]} Ke5 {[%emt 0:00:00]} 65. Rc2 {[%emt 0:00:00]} Rb6+ {[%emt 0:00:00]} 66. Kd7 {[%emt 0:00:00]} Kd5 {[%emt 0:00:00]} 67. Rd2 {[%emt 0:00:00]} Rb7+ {[%emt 0:00:00]} 68. Kd8 {[%emt 0:00:00]} Kc5 {[%emt 0:00:00]} 69. Ke8 {[%emt 0:00:00]} Be5 {[%emt 0:00:00]} 70. Rd7 {[%emt 0:00:00]} Rb6 {[%emt 0:00:00]} 71. Kf7 {[%emt 0:00:00]} Rf6+ {[%emt 0:00:00]} 72. Ke7 {[%emt 0:00:00]} Rh6 {[%emt 0:00:00]} 73. Kf7 {[%emt 0:00:00]} Bd6 {[%emt 0:00:00]} 74. Kg7 {[%emt 0:00:00]} Re6 {[%emt 0:00:00]} 75. Kf7 {[%emt 0:00:19]} Kd5 {[%emt 0:00:00]} 76. Ra7 {[%emt 0:00:54]} Re1 {[%emt 0:00:00]} 77. Ra5+ {[%emt 0:00:30]} Kc6 {[%emt 0:00:00]} 78. Ra6+ {[%emt 0:00:08]} Kd7 {[%emt 0:00:14]} 79. Ra7+ {[%emt 0:00:10]} Bc7 {[%emt 0:00:11]} 80. Kf6 {[%emt 0:00:30]} Rf1+ {[%emt 0:00:21]} 81. Kg5 {[%emt 0:00:15]} Kd6 {[%emt 0:00:43]} 82. Kg4 {[%emt 0:00:16]} Bb6 {[%emt 0:00:32]} 83. Ra6 {[%emt 0:00:07]} Rb1 {[%emt 0:00:17]} 84. Kf5 {[%emt 0:00:46]} Kd5 {[%emt 0:00:15]} 85. Ra4 {[%emt 0:00:14]} Bc7 {[%emt 0:00:24]} 86. Kg4 {[%emt 0:00:59]} Rf1 {[%emt 0:00:49]} 87. Ra3 {[%emt 0:01:03]} Be5 {[%emt 0:00:57]} 88. Rf3 {[%emt 0:00:23]} Rg1+ {[%emt 0:00:13]} 89. Kf5 {[%emt 0:00:20]} Rg8 {[%emt 0:00:30]} 90. Rd3+ {[%emt 0:00:05]} Bd4 {[%emt 0:00:25]} 91. Rf3 {[%emt 0:00:14]} Rf8+ {[%emt 0:01:09]} 92. Kg4 {[%emt 0:00:08]} Rh8 {[%emt 0:00:28]} 93. Kf5 {[%emt 0:00:19]} Re8 {[%emt 0:00:40]} 94. Rf4 {[%emt 0:00:44]} Be5 {[%emt 0:00:42]} 95. Rf3 {[%emt 0:00:17]} Kd4 {[%emt 0:00:27]} 96. Ra3 {[%emt 0:00:40]} Bd6 {[%emt 0:01:14]} 97. Ra4+ {[%emt 0:00:20]} Kd5 {[%emt 0:00:17]} 98. Ra5+ {[%emt 0:00:06]} Bc5 {[%emt 0:00:18]} 99. Ra6 {[%emt 0:00:10]} Re5+ {[%emt 0:00:28]} 1/2-1/2

[Event "LEM Sachsen-Anhalt Masters 2024"]
[Site "Merseburg"]
[Date "2024.02.08"]
[Round "1.2"]
[White "Daub, Sebastian"]
[Black "Reipsch, Jens"]
[Result "0-1"]
[ECO "A46"]
[WhiteElo "1967"]
[BlackElo "2225"]
[Annotator "TA"]
[PlyCount "74"]
[EventDate "2024.02.01"]
[EventType "swiss"]
[EventCountry "GER"]
[SourceTitle "playchess.com"]
[Source "ChessBase"]
[SourceQuality "1"]
[TimeControl "40/5400+30:1800+30"]

{[%evp 9,74,13,23,12,2,13,0,6,2,8,27,20,32,19,8,0,52,32,45,45,71,39,154,0,0,0,25,36,14,-28,-20,-15,0,-27,27,-128,-119,-119,-137,-133,-127,-120,-130,-125,-127,-335,-134,-193,-190,-197,-208,-208,-208,-243,-236,-245,-223,-378,-375,-358,-384,-372,-368,-443,-447,-433,-425]} 1. d4 {[%emt 0:00:21]} Nf6 {[%emt 0:00:11]} 2. Nf3 {[%emt 0:00:15]} c6 {[%emt 0:00:15]} 3. c3 {[%emt 0:01:04]} g6 {[%emt 0:01:14][%cal Bg7g6,Bg6g5][%mdl 32]} 4. Bf4 {[%emt 0:00:51]} Bg7 {[%emt 0:01:15]} 5. e3 {[%emt 0:00:13]} d6 {[%emt 0:01:37]} 6. Be2 {[%emt 0:00:40]} Nh5 {[%emt 0:05:09]} 7. Bg5 {[%emt 0:00:17][%cal Bf4g5,Bg5h4,Bh4g3][%mdl 32]} h6 {[%emt 0:00:34]} 8. Bh4 {[%emt 0:00:16] The position is equal.} g5 {[%emt 0:01:42]} 9. Nfd2 {[%emt 0:00:46]} Nf6 {[%emt 0:03:23]} 10. Bg3 {[%emt 0:00:11]} Bf5 {[%emt 0:02:25]} 11. O-O {[%emt 0:08:49]} Nbd7 {[%emt 0:02:28]} 12. c4 {[%emt 0:05:38]} c5 {[%emt 0:04:05]} (12... O-O $11) 13. Nc3 $14 {[%emt 0:04:42]} cxd4 {[%emt 0:01:31]} 14. exd4 {[%emt 0:00:37]} Qb6 {[%emt 0:00:42]} 15. Nb5 {[%emt 0:04:20][%cal Oc4c5] aiming for c5!} Rc8 {[%emt 0:06:30]} ({Black should try} 15... O-O $14) 16. Nb3 $2 {[%emt 0:20:21]} ({White should play} 16. Bxd6 $16 {Hoping for c5.} a6 (16... exd6 $2 17. c5 $18) 17. c5) 16... Ne4 $11 {[%emt 0:05:25]} 17. Rc1 {[%emt 0:02:57][%cal Oc4c5]} Nxg3 {[%emt 0:06:09]} 18. fxg3 {[%emt 0:02:17]} Bg6 {[%emt 0:01:42]} 19. Bd3 {[%emt 0:03:31]} Bxd3 {[%emt 0:05:13]} 20. Qxd3 {[%emt 0:00:02]} Ne5 {[%emt 0:06:54]} 21. Qe2 {[%emt 0:05:48] [#] And now Qf2 would win.} a6 {[%emt 0:05:39]} (21... O-O $142 $1 22. Nc3 (22. c5 dxc5 23. dxc5 Qa6 $17) 22... Nc6 (22... Nxc4 $2 23. Nd5 $18)) 22. c5 $2 {[%emt 0:08:23]} (22. Nc3 $1 $11 Ng6 (22... Rxc4 $2 23. Nd5 $18) 23. Nd5) 22... Qxb5 $17 {[%emt 0:09:24]} 23. Qxb5+ {[%emt 0:00:43]} axb5 {[%emt 0:00:04]} 24. dxe5 {[%emt 0:00:18]} dxc5 {[%emt 0:01:21]} (24... Bxe5 25. cxd6 Rxc1 26. Rxc1) 25. Rxc5 {[%emt 0:01:43]} Rxc5 {[%emt 0:00:25]} 26. Nxc5 {[%emt 0:00:02]} Bxe5 {[%emt 0:01:08][%mdl 4096] Endgame. Threatens to win with ...Bd4+. KRB-KRN} 27. Rf5 $2 {[%emt 0:10:04] [#] White does not recover from this.} (27. Rd1 $17 {was worth a try.}) 27... f6 {[%emt 0:05:05]} ({Not} 27... Bxb2 28. Nxb7 b4 29. Kf1 $17) (27... Bd4+ $1 $19 {has better winning chances.} 28. Kf1 e6 (28... Bxb2 29. Nxb7 e5 30. Rf6 $17)) 28. Nxb7 {[%emt 0:02:38]} (28. Kf1 $17) 28... Kf7 $19 {[%emt 0:00:27][%cal Oh8a8]} ({Stronger than} 28... Bxb2 29. Rxb5 Bd4+ 30. Kf1 $11) 29. b4 {[%emt 0:03:09]} Ra8 {[%emt 0:02:42]} 30. Na5 {[%emt 0:00:52]} Rc8 {[%emt 0:01:37]} 31. Kf1 {[%emt 0:00:36]} Rc1+ {[%emt 0:01:35]} 32. Ke2 {[%emt 0:00:02]} Rc2+ {[%emt 0:00:40]} 33. Kd3 $2 {[%emt 0:06:20]} (33. Kf1) 33... Rxa2 {[%emt 0:00:46]} 34. Nc6 {[%emt 0:00:28]} Ke6 {[%emt 0:01:30]} 35. Rf1 {[%emt 0:00:25]} Rxg2 {[%emt 0:00:27]} 36. Nd4+ {[%emt 0:00:44]} Bxd4 {[%emt 0:01:40]} 37. Kxd4 {[%emt 0:00:01]} Rc2 {[%emt 0:00:18] Weighted Error Value: White=0.39/Black=0.24 (precise) .  Loses game:     	White=1     	---        Missed win:     	---       	Black=1      Mistake:       	White=4     	Black=3      Inaccurate:     	White=3     	Black=1      OK:         	White=10    	Black=18     Best:        	---       	Black=2} ({Weaker is} 37... Rxh2 38. Kc5 $19) 0-1

[Event "LEM Sachsen-Anhalt Masters 2024"]
[Site "Merseburg"]
[Date "2024.02.08"]
[Round "1.3"]
[White "Polzin, Gustav"]
[Black "Haubold, Christian"]
[Result "0-1"]
[ECO "C54"]
[WhiteElo "1895"]
[BlackElo "1990"]
[Annotator "RC"]
[PlyCount "116"]
[EventDate "2024.02.01"]
[EventType "swiss"]
[EventCountry "GER"]
[SourceTitle "playchess.com"]
[Source "ChessBase"]
[SourceQuality "1"]
[TimeControl "40/5400+30:1800+30"]

1. e4 {[%emt 0:00:04]} e5 {[%emt 0:00:10]} 2. Nf3 {[%emt 0:00:12]} Nc6 {[%emt 0:00:11]} 3. Bc4 {[%emt 0:00:15]} Nf6 {[%emt 0:00:24]} 4. d3 {[%emt 0:00:07]} Bc5 {[%emt 0:00:27]} 5. c3 {[%emt 0:00:34]} O-O {[%emt 0:02:34]} 6. O-O {[%emt 0:00:29]} d5 {[%emt 0:00:38]} 7. exd5 {[%emt 0:00:27]} Nxd5 {[%emt 0:00:13]} 8. Re1 {[%emt 0:03:22]} Bg4 {[%emt 0:00:22]} 9. h3 {[%emt 0:01:08]} Bh5 {[%emt 0:00:29]} 10. b4 {[%emt 0:03:11]} Bb6 {[%emt 0:34:15]} 11. a4 {[%emt 0:09:43]} a6 {[%emt 0:05:20]} 12. Bb2 {[%emt 0:04:08]} Nf4 {[%emt 0:04:28]} 13. Bc1 {[%emt 0:07:54]} Qf6 {[%emt 0:10:34]} 14. Bxf4 {[%emt 0:04:03]} exf4 {[%emt 0:00:09]} 15. d4 {[%emt 0:03:17]} Rad8 {[%emt 0:07:18]} 16. Nbd2 {[%emt 0:00:49]} Bxd4 {[%emt 0:11:34]} 17. cxd4 {[%emt 0:12:05]} Nxd4 {[%emt 0:00:43]} 18. Be2 {[%emt 0:15:17]} Bxf3 {[%emt 0:01:48]} 19. Bxf3 {[%emt 0:00:18]} Nxf3+ {[%emt 0:00:10]} 20. gxf3 {[%emt 0:02:07]} Qh4 {[%emt 0:02:49]} 21. Kg2 {[%emt 0:00:21]} Rd6 {[%emt 0:03:54]} 22. Qe2 {[%emt 0:00:57]} Rh6 {[%emt 0:02:35]} 23. Rh1 {[%emt 0:00:42]} Rg6+ {[%emt 0:00:40]} 24. Kh2 {[%emt 0:04:06]} Rg3 {[%emt 0:00:37]} 25. Qf1 {[%emt 0:00:12]} Re8 {[%emt 0:01:30]} 26. Ne4 {[%emt 0:11:42]} Rxf3 {[%emt 0:02:31]} 27. Qg2 {[%emt 0:16:30]} Rb3 {[%emt 0:01:01]} 28. Rhg1 {[%emt 0:00:00]} g6 {[%emt 0:00:17]} 29. f3 {[%emt 0:00:00]} Rxb4 {[%emt 0:02:10]} 30. Qd2 {[%emt 0:00:00]} Rb3 {[%emt 0:03:22]} 31. Rg4 {[%emt 0:00:00]} Qd8 {[%emt 0:00:37]} 32. Qxd8 {[%emt 0:00:00]} Rxd8 {[%emt 0:00:01]} 33. Rxf4 {[%emt 0:00:00]} h6 {[%emt 0:00:59]} 34. Rc1 {[%emt 0:00:00]} c6 {[%emt 0:00:39]} 35. Rc2 {[%emt 0:00:00]} Kg7 {[%emt 0:00:39]} 36. h4 {[%emt 0:00:00]} Rb4 {[%emt 0:00:30]} 37. Kg3 {[%emt 0:00:00]} Rdd4 {[%emt 0:00:19]} 38. a5 {[%emt 0:00:00]} f5 {[%emt 0:00:36]} 39. Nc5 {[%emt 0:00:00]} Rxf4 {[%emt 0:00:43]} 40. Ne6+ {[%emt 0:00:00]} Kf6 {[%emt 0:00:09]} 41. Nxf4 {[%emt 0:30:07]} g5 {[%emt 0:04:49]} 42. hxg5+ {[%emt 0:00:00]} hxg5 {[%emt 0:00:12]} 43. Nd3 {[%emt 0:00:00]} Rb3 {[%emt 0:02:37]} 44. Nc5 {[%emt 0:00:00]} Rb5 {[%emt 0:01:09]} 45. Rc3 {[%emt 0:00:00]} Ke5 {[%emt 0:03:41]} 46. Nb3 {[%emt 0:00:00]} Kd5 {[%emt 0:00:56]} 47. Kf2 {[%emt 0:00:00]} c5 {[%emt 0:01:24]} 48. Ke3 {[%emt 0:00:00]} c4 {[%emt 0:01:25]} 49. Nd2 {[%emt 0:00:00]} Rb4 {[%emt 0:02:17]} 50. Rc2 {[%emt 0:00:00]} Ra4 {[%emt 0:09:32]} 51. Nf1 {[%emt 0:00:21]} Ra3+ {[%emt 0:02:46]} 52. Ke2 {[%emt 0:00:37]} f4 {[%emt 0:01:35]} 53. Nd2 {[%emt 0:00:40]} Re3+ {[%emt 0:00:28]} 54. Kf2 {[%emt 0:00:15]} c3 {[%emt 0:00:20]} 55. Nf1 {[%emt 0:02:48]} Rd3 {[%emt 0:00:08]} 56. Ke2 {[%emt 0:01:09]} Kc4 {[%emt 0:00:25]} 57. Rc1 {[%emt 0:00:18]} Rd7 {[%emt 0:00:16]} 58. Nh2 {[%emt 0:01:17]} Rd2+ {[%emt 0:00:09]} 0-1

[Event "LEM Sachsen-Anhalt Masters 2024"]
[Site "Merseburg"]
[Date "2024.02.08"]
[Round "1.4"]
[White "Groebel, Aaron"]
[Black "Schulz, Maximilian"]
[Result "1-0"]
[ECO "B06"]
[WhiteElo "2087"]
[BlackElo "1896"]
[Annotator "RC"]
[PlyCount "67"]
[EventDate "2024.02.01"]
[EventType "swiss"]
[EventCountry "GER"]
[SourceTitle "playchess.com"]
[Source "ChessBase"]
[SourceQuality "1"]
[TimeControl "40/5400+30:1800+30"]

1. e4 {[%emt 0:00:04]} g6 {[%emt 0:00:03]} 2. d4 {[%emt 0:00:12]} Bg7 {[%emt 0:00:04]} 3. Nc3 {[%emt 0:00:16]} d6 {[%emt 0:00:50]} 4. f4 {[%emt 0:01:03]} e6 {[%emt 0:03:02]} 5. Nf3 {[%emt 0:02:00]} Ne7 {[%emt 0:00:23]} 6. Be3 {[%emt 0:01:47]} a6 {[%emt 0:00:27]} 7. a4 {[%emt 0:03:25]} Nd7 {[%emt 0:16:15]} 8. Bc4 {[%emt 0:04:53]} c6 {[%emt 0:03:58]} 9. Bb3 {[%emt 0:05:12]} d5 {[%emt 0:02:51]} 10. e5 {[%emt 0:01:05]} Nf5 {[%emt 0:01:24]} 11. Bf2 {[%emt 0:00:08]} h5 {[%emt 0:00:24]} 12. Ne2 {[%emt 0:01:42]} b5 {[%emt 0:08:42]} 13. Ng3 {[%emt 0:12:41]} Nh6 {[%emt 0:03:32]} 14. h3 {[%emt 0:07:59]} Nb6 {[%emt 0:05:44]} 15. Nd2 {[%emt 0:11:06]} Bd7 {[%emt 0:12:35]} 16. a5 {[%emt 0:04:51]} Nc4 {[%emt 0:01:17]} 17. Bxc4 {[%emt 0:00:08]} bxc4 {[%emt 0:00:08]} 18. b3 {[%emt 0:40:58]} cxb3 {[%emt 0:00:28]} 19. Nxb3 {[%emt 0:00:00]} Bf8 {[%emt 0:04:52]} 20. O-O {[%emt 0:00:00]} c5 {[%emt 0:02:26]} 21. dxc5 {[%emt 0:00:00]} Bb5 {[%emt 0:00:18]} 22. Re1 {[%emt 0:00:00]} Qc7 {[%emt 0:02:58]} 23. Nf1 {[%emt 0:00:00]} Bc4 {[%emt 0:10:53]} 24. Nfd2 {[%emt 0:00:00]} Nf5 {[%emt 0:00:24]} 25. Qf3 {[%emt 0:00:00]} Rc8 {[%emt 0:01:12]} 26. Ra4 {[%emt 0:00:00]} Bb5 {[%emt 0:05:43]} 27. Rb4 {[%emt 0:00:00]} d4 {[%emt 0:05:26]} 28. Ne4 {[%emt 0:00:00]} Rb8 {[%emt 0:04:36]} 29. Nd6+ {[%emt 0:00:00]} Bxd6 {[%emt 0:00:11]} 30. exd6 {[%emt 0:00:00]} Qd8 {[%emt 0:00:51]} 31. Nxd4 {[%emt 0:00:00]} Kd7 {[%emt 0:01:58]} 32. Rxb5 {[%emt 0:00:00]} Nxd4 {[%emt 0:00:38]} 33. Rb7+ {[%emt 0:00:00]} Ke8 {[%emt 0:00:53]} 34. Bxd4 {[%emt 0:00:00]} 1-0

[Event "LEM Sachsen-Anhalt Masters 2024"]
[Site "Merseburg"]
[Date "2024.02.08"]
[Round "1.5"]
[White "Noennig, Jakob"]
[Black "Lippert, Daniel"]
[Result "1/2-1/2"]
[ECO "B59"]
[WhiteElo "1789"]
[BlackElo "2034"]
[Annotator "NA RC"]
[PlyCount "91"]
[EventDate "2024.02.01"]
[EventType "swiss"]
[EventCountry "GER"]
[SourceTitle "playchess.com"]
[Source "ChessBase"]
[SourceQuality "1"]
[TimeControl "40/5400+30:1800+30"]

1. e4 {[%emt 0:00:03]} c5 {[%emt 0:00:18]} 2. Nf3 {[%emt 0:00:08]} Nc6 {[%emt 0:00:04]} 3. d4 {[%emt 0:00:07]} cxd4 {[%emt 0:00:04]} 4. Nxd4 {[%emt 0:00:09]} Nf6 {[%emt 0:00:02]} 5. Nc3 {[%emt 0:00:12]} d6 {[%emt 0:00:04]} 6. Be2 {[%emt 0:07:58]} e5 {[%emt 0:01:40]} 7. Nb3 {[%emt 0:07:14]} Be6 {[%emt 0:02:02]} 8. Bg5 {[%emt 0:06:37]} Be7 {[%emt 0:03:59]} 9. Bxf6 {[%emt 0:02:53]} Bxf6 {[%emt 0:00:53]} 10. Nd5 {[%emt 0:00:12]} Bg5 {[%emt 0:06:50]} 11. O-O {[%emt 0:03:59]} O-O {[%emt 0:01:02]} 12. f4 {[%emt 0:14:48] B59: Classical Sicilian: 6 Be2 e5 7 Nb3.} exf4 {[%emt 0:25:58]} 13. Nxf4 {[%emt 0:01:12]} Qb6+ {[%emt 0:07:48]} 14. Kh1 {[%emt 0:00:16]} Qe3 {[%emt 0:04:17]} 15. Nxe6 {[%emt 0:14:50]} fxe6 {[%emt 0:00:09]} 16. Qd3 {[%emt 0:06:26]} Qxd3 {[%emt 0:04:21]} 17. cxd3 {[%emt 0:04:56]} (17. Bxd3 $11 Rxf1+ 18. Rxf1) 17... Rxf1+ {[%emt 0:03:50]} 18. Rxf1 {[%emt 0:02:12]} Rf8 {[%emt 0:04:16]} 19. Bf3 {[%emt 0:05:31]} Bf6 {[%emt 0:00:11]} 20. Bg4 {[%emt 0:16:54]} Re8 {[%emt 0:02:27]} 21. Rf2 {[%emt 0:02:22]} Nb4 {[%emt 0:02:30]} 22. d4 {[%emt 0:00:25]} Nxa2 {[%emt 0:05:29]} 23. Rc2 {[%emt 0:00:11]} Nb4 {[%emt 0:05:13]} 24. Rc7 {[%emt 0:00:15]} ({Not} 24. Rc8 $2 Rxc8 25. Bxe6+ Kf8 26. Bxc8 b6 $19) 24... Nc6 {[%emt 0:03:51]} 25. Rxb7 {[%emt 0:01:10]} Nxd4 {[%emt 0:00:08]} 26. Nxd4 {[%emt 0:01:05]} Bxd4 {[%emt 0:00:05]} 27. b4 {[%emt 0:00:23]} Kf8 {[%emt 0:02:07]} 28. Rd7 {[%emt 0:01:09]} Rc8 {[%emt 0:02:08]} 29. g3 {[%emt 0:00:32]} Rc1+ {[%emt 0:00:03]} 30. Kg2 {[%emt 0:00:05]} Rc2+ {[%emt 0:00:08]} 31. Kh3 {[%emt 0:01:08]} Bg1 {[%emt 0:01:59]} 32. Bxe6 {[%emt 0:00:08]} h5 {[%emt 0:01:01]} 33. Kh4 {[%emt 0:00:23]} Rxh2+ {[%emt 0:02:02]} 34. Kg5 {[%emt 0:00:02]} Be3+ {[%emt 0:04:56]} 35. Kg6 {[%emt 0:01:05]} h4 {[%emt 0:00:59]} 36. gxh4 {[%emt 0:00:44]} Rxh4 {[%emt 0:01:43]} 37. Bd5 {[%emt 0:00:44]} Rh6+ {[%emt 0:00:30]} 38. Kf5 {[%emt 0:00:03]} Rf6+ {[%emt 0:00:35]} 39. Kg4 {[%emt 0:00:04]} Rf4+ {[%emt 0:02:19]} 40. Kh5 {[%emt 0:00:39]} Rf6 {[%emt 0:00:45]} 41. b5 {[%emt 0:13:55]} g5 {[%emt 0:04:16]} 42. Bc6 {[%emt 0:04:21]} Kg8 {[%emt 0:04:27]} 43. Bd5+ {[%emt 0:01:22]} Kf8 $11 {[%emt 0:00:06]} 44. Bc6 {[%emt 0:00:53]} Re6 {[%emt 0:18:58]} 45. Bd5 {[%emt 0:01:13]} Rf6 {[%emt 0:00:41]} 46. Bc6 {[%emt 0:00:41]} 1/2-1/2